[Event "Titled Tuesday Blitz October 12 2021"]
[White "Keymer, Vincent"]
[Black "Aloma Vidal, Robert"]
[WhiteFideId "12940690"]
[BlackFideId "2260409"]
[WhiteElo "2524"]
[BlackElo "2435"]
[Result "1/2-1/2"]
[Round "02"]
[TimeControl "180+1"]
[Date "2021.10.12"]
[WhiteClock "0:00:13"]
[BlackClock "0:00:12"]

1. Nf3 {[%clk 0:03:00]}  d5 {[%clk 0:02:59]} 2. e3 {[%clk 0:03:00]}  Nf6 {[%clk 0:02:59]} 3. c4 {[%clk 0:03:00]}  c6 {[%clk 0:02:59]} 4. Nc3 {[%clk 0:03:00]}  e6 {[%clk 0:02:59]} 5. b3 {[%clk 0:03:00]}  Bd6 {[%clk 0:02:59]} 6. Bb2 {[%clk 0:03:00]}  O-O {[%clk 0:02:57]} 7. Be2 {[%clk 0:03:00]}  e5 {[%clk 0:02:56]} 8. cxd5 {[%clk 0:02:59]}  cxd5 {[%clk 0:02:56]} 9. Nb5 {[%clk 0:03:00]}  Nc6 {[%clk 0:02:56]} 10. Nxd6 {[%clk 0:03:00]}  Qxd6 {[%clk 0:02:56]} 11. O-O {[%clk 0:02:59]}  d4 {[%clk 0:02:47]} 12. Bb5 {[%clk 0:02:25]}  Bg4 {[%clk 0:02:42]} 13. h3 {[%clk 0:02:22]}  Bh5 {[%clk 0:02:41]} 14. Bxc6 {[%clk 0:02:08]}  bxc6 {[%clk 0:02:39]} 15. d3 {[%clk 0:02:07]}  dxe3 {[%clk 0:01:53]} 16. fxe3 {[%clk 0:01:57]}  Rfe8 {[%clk 0:01:49]} 17. Qc2 {[%clk 0:01:37]}  e4 {[%clk 0:01:15]} 18. dxe4 {[%clk 0:01:12]}  Nxe4 {[%clk 0:01:15]} 19. Rad1 {[%clk 0:00:48]}  Qh6 {[%clk 0:01:14]} 20. Rde1 {[%clk 0:00:37]}  Ng3 {[%clk 0:00:59]} 21. Rf2 {[%clk 0:00:38]}  Ne4 {[%clk 0:00:59]} 22. Rff1 {[%clk 0:00:16]}  Rad8 {[%clk 0:00:52]} 23. Nd4 {[%clk 0:00:16]}  Ng3 {[%clk 0:00:39]} 24. Nf5 {[%clk 0:00:16]}  Nxf5 {[%clk 0:00:39]} 25. Qxf5 {[%clk 0:00:17]}  Rd2 {[%clk 0:00:35]} 26. Rf2 {[%clk 0:00:16]}  Bg6 {[%clk 0:00:27]} 27. Qf3 {[%clk 0:00:11]}  Rxf2 {[%clk 0:00:26]} 28. Qxf2 {[%clk 0:00:12]}  Qg5 {[%clk 0:00:23]} 29. Bd4 {[%clk 0:00:11]}  c5 {[%clk 0:00:23]} 30. Bb2 {[%clk 0:00:11]}  h5 {[%clk 0:00:22]} 31. Bc1 {[%clk 0:00:11]}  Be4 {[%clk 0:00:20]} 32. Rd1 {[%clk 0:00:11]}  Re6 {[%clk 0:00:19]} 33. Rd2 {[%clk 0:00:10]}  Rf6 {[%clk 0:00:18]} 34. Qe1 {[%clk 0:00:10]}  a6 {[%clk 0:00:14]} 35. Kh2 {[%clk 0:00:09]}  Qe5+ {[%clk 0:00:14]} 36. Qg3 {[%clk 0:00:09]}  Qxg3+ {[%clk 0:00:14]} 37. Kxg3 {[%clk 0:00:09]}  Rg6+ {[%clk 0:00:14]} 38. Kh2 {[%clk 0:00:09]}  Kh7 {[%clk 0:00:14]} 39. Ba3 {[%clk 0:00:09]}  Rg5 {[%clk 0:00:12]} 40. Rf2 {[%clk 0:00:08]}  f6 {[%clk 0:00:12]} 41. Bb2 {[%clk 0:00:08]}  Bb7 {[%clk 0:00:10]} 42. Rc2 {[%clk 0:00:08]}  Kg6 {[%clk 0:00:08]} 43. Ba3 {[%clk 0:00:07]}  Be4 {[%clk 0:00:05]} 44. Rd2 {[%clk 0:00:07]}  Rd5 {[%clk 0:00:04]} 45. Rf2 {[%clk 0:00:06]}  Rd3 {[%clk 0:00:03]} 46. Bxc5 {[%clk 0:00:04]}  Rd1 {[%clk 0:00:02]} 47. Bd4 {[%clk 0:00:04]}  Rc1 {[%clk 0:00:01]} 48. a4 {[%clk 0:00:04]}  Rc2 {[%clk 0:00:02]} 49. Rxc2 {[%clk 0:00:03]}  Bxc2 {[%clk 0:00:02]} 50. a5 {[%clk 0:00:04]}  Bxb3 {[%clk 0:00:03]} 51. Kg3 {[%clk 0:00:05]}  Bd5 {[%clk 0:00:03]} 52. Kf2 {[%clk 0:00:04]}  Kf5 {[%clk 0:00:04]} 53. h4 {[%clk 0:00:05]}  Ke4 {[%clk 0:00:04]} 54. g3 {[%clk 0:00:05]}  Be6 {[%clk 0:00:05]} 55. Bc5 {[%clk 0:00:05]}  g6 {[%clk 0:00:04]} 56. Be7 {[%clk 0:00:05]}  f5 {[%clk 0:00:05]} 57. Bc5 {[%clk 0:00:06]}  Bc4 {[%clk 0:00:05]} 58. Ke1 {[%clk 0:00:06]}  Kd3 {[%clk 0:00:05]} 59. Kf2 {[%clk 0:00:05]}  Bd5 {[%clk 0:00:05]} 60. Bd6 {[%clk 0:00:06]}  Be4 {[%clk 0:00:06]} 61. Bf4 {[%clk 0:00:06]}  Bd5 {[%clk 0:00:07]} 62. Ke1 {[%clk 0:00:07]}  Be4 {[%clk 0:00:07]} 63. Kd1 {[%clk 0:00:08]}  Bf3+ {[%clk 0:00:07]} 64. Kc1 {[%clk 0:00:08]}  Be4 {[%clk 0:00:08]} 65. Kb2 {[%clk 0:00:09]}  Kc4 {[%clk 0:00:08]} 66. Kc1 {[%clk 0:00:09]}  Kc3 {[%clk 0:00:08]} 67. Bc7 {[%clk 0:00:09]}  Kd3 {[%clk 0:00:08]} 68. Bf4 {[%clk 0:00:10]}  Kc3 {[%clk 0:00:08]} 69. Kd1 {[%clk 0:00:10]}  Kd3 {[%clk 0:00:08]} 70. Ke1 {[%clk 0:00:08]}  Bf3 {[%clk 0:00:07]} 71. Kf2 {[%clk 0:00:09]}  Bg4 {[%clk 0:00:08]} 72. Be5 {[%clk 0:00:09]}  Ke4 {[%clk 0:00:08]} 73. Bf4 {[%clk 0:00:10]}  Kd3 {[%clk 0:00:08]} 74. Ke1 {[%clk 0:00:10]}  Bf3 {[%clk 0:00:08]} 75. Kf1 {[%clk 0:00:11]}  Bg4 {[%clk 0:00:09]} 76. Kf2 {[%clk 0:00:11]}  Ke4 {[%clk 0:00:09]} 77. Bg5 {[%clk 0:00:09]}  Kd3 {[%clk 0:00:09]} 78. Bf4 {[%clk 0:00:10]}  Ke4 {[%clk 0:00:09]} 79. Bd6 {[%clk 0:00:10]}  Kd3 {[%clk 0:00:10]} 80. Bc7 {[%clk 0:00:11]}  Ke4 {[%clk 0:00:10]} 81. Bb6 {[%clk 0:00:11]}  Kd3 {[%clk 0:00:10]} 82. Bd8 {[%clk 0:00:12]}  Ke4 {[%clk 0:00:11]} 83. Bc7 {[%clk 0:00:12]}  Kd3 {[%clk 0:00:12]} 84. Bf4 {[%clk 0:00:13]} 1/2-1/2


[Site "https://www.chess.com"]

[Event "Titled Tuesday Blitz October 12 2021"]
[White "Kislov, Oleg"]
[Black "Nogerbek, Kazybek"]
[WhiteFideId "13503774"]
[BlackFideId "13710427"]
[WhiteElo "2252"]
[BlackElo "2436"]
[Result "0-1"]
[Round "02"]
[TimeControl "180+1"]
[Date "2021.10.12"]
[WhiteClock "0:00:01"]
[BlackClock "0:00:18"]

1. d4 {[%clk 0:03:00]}  Nf6 {[%clk 0:02:54]} 2. Nc3 {[%clk 0:03:00]}  d5 {[%clk 0:02:54]} 3. Bg5 {[%clk 0:03:00]}  Nbd7 {[%clk 0:02:51]} 4. Nf3 {[%clk 0:02:59]}  h6 {[%clk 0:02:52]} 5. Bf4 {[%clk 0:02:58]}  c5 {[%clk 0:02:47]} 6. e3 {[%clk 0:02:11]}  a6 {[%clk 0:02:47]} 7. Bd3 {[%clk 0:02:04]}  b5 {[%clk 0:02:26]} 8. O-O {[%clk 0:01:57]}  Bb7 {[%clk 0:02:26]} 9. Ne5 {[%clk 0:01:57]}  e6 {[%clk 0:02:21]} 10. Qf3 {[%clk 0:01:35]}  Be7 {[%clk 0:01:59]} 11. a3 {[%clk 0:01:19]}  Qb6 {[%clk 0:01:46]} 12. Nxd7 {[%clk 0:01:15]}  Nxd7 {[%clk 0:01:44]} 13. Qg3 {[%clk 0:01:12]}  g5 {[%clk 0:01:26]} 14. Be5 {[%clk 0:00:58]}  Nxe5 {[%clk 0:01:21]} 15. Qxe5 {[%clk 0:00:58]}  O-O-O {[%clk 0:01:15]} 16. dxc5 {[%clk 0:00:51]}  Bxc5 {[%clk 0:01:07]} 17. b4 {[%clk 0:00:47]}  Bd6 {[%clk 0:01:06]} 18. Qf6 {[%clk 0:00:48]}  Qc7 {[%clk 0:01:05]} 19. f4 {[%clk 0:00:31]}  gxf4 {[%clk 0:01:01]} 20. exf4 {[%clk 0:00:31]}  Rhg8 {[%clk 0:00:52]} 21. Ne2 {[%clk 0:00:29]}  e5 {[%clk 0:00:40]} 22. fxe5 {[%clk 0:00:24]}  Bxe5 {[%clk 0:00:41]} 23. Qf5+ {[%clk 0:00:24]}  Kb8 {[%clk 0:00:41]} 24. Rae1 {[%clk 0:00:23]}  Bxh2+ {[%clk 0:00:41]} 25. Kh1 {[%clk 0:00:23]}  Be5 {[%clk 0:00:40]} 26. Nf4 {[%clk 0:00:22]}  Rg5 {[%clk 0:00:38]} 27. Rxe5 {[%clk 0:00:08]}  Rxf5 {[%clk 0:00:24]} 28. Rxf5 {[%clk 0:00:08]}  d4 {[%clk 0:00:24]} 29. Nh5 {[%clk 0:00:07]}  Rg8 {[%clk 0:00:24]} 30. R1f2 {[%clk 0:00:07]}  Rg5 {[%clk 0:00:22]} 31. Rxg5 {[%clk 0:00:06]}  hxg5 {[%clk 0:00:23]} 32. Nf6 {[%clk 0:00:06]}  Qg3 {[%clk 0:00:23]} 33. Kg1 {[%clk 0:00:06]}  Qe3 {[%clk 0:00:21]} 34. Ng4 {[%clk 0:00:05]}  Qc1+ {[%clk 0:00:18]} 35. Kh2 {[%clk 0:00:05]}  Qxa3 {[%clk 0:00:19]} 36. Rxf7 {[%clk 0:00:05]}  Qxb4 {[%clk 0:00:20]} 37. Ne5 {[%clk 0:00:05]}  Qd6 {[%clk 0:00:20]} 38. Rf5 {[%clk 0:00:05]}  Bc8 {[%clk 0:00:18]} 39. Rxg5 {[%clk 0:00:05]}  Qh6+ {[%clk 0:00:19]} 40. Kg1 {[%clk 0:00:02]}  Qxg5 {[%clk 0:00:18]} 41. Nc6+ {[%clk 0:00:02]}  Kc7 {[%clk 0:00:19]} 42. Nb4 {[%clk 0:00:01]}  Qe3+ {[%clk 0:00:18]} 0-1


[Site "https://www.chess.com"]

[Event "Titled Tuesday Blitz October 12 2021"]
[White "Kollars, Dmitrij"]
[Black "Yaniuk, Volodymyr"]
[WhiteFideId "12909572"]
[BlackFideId "14133083"]
[WhiteElo "2584"]
[BlackElo "2207"]
[Result "1-0"]
[Round "02"]
[TimeControl "180+1"]
[Date "2021.10.12"]
[WhiteClock "0:00:17"]
[BlackClock "0:00:08"]

1. c4 {[%clk 0:03:00]}  e6 {[%clk 0:02:57]} 2. Nf3 {[%clk 0:02:59]}  d5 {[%clk 0:02:57]} 3. d4 {[%clk 0:02:59]}  Nf6 {[%clk 0:02:57]} 4. Nc3 {[%clk 0:02:59]}  a6 {[%clk 0:02:57]} 5. cxd5 {[%clk 0:02:58]}  exd5 {[%clk 0:02:57]} 6. Bf4 {[%clk 0:02:59]}  c6 {[%clk 0:02:57]} 7. e3 {[%clk 0:02:53]}  Bd6 {[%clk 0:02:51]} 8. Bd3 {[%clk 0:02:53]}  Bxf4 {[%clk 0:02:50]} 9. exf4 {[%clk 0:02:53]}  Bg4 {[%clk 0:02:48]} 10. O-O {[%clk 0:02:49]}  O-O {[%clk 0:02:46]} 11. h3 {[%clk 0:02:49]}  Bxf3 {[%clk 0:02:34]} 12. Qxf3 {[%clk 0:02:50]}  Nbd7 {[%clk 0:02:32]} 13. Rad1 {[%clk 0:02:48]}  Re8 {[%clk 0:02:30]} 14. g4 {[%clk 0:02:41]}  Qb6 {[%clk 0:02:28]} 15. b3 {[%clk 0:02:10]}  g6 {[%clk 0:02:26]} 16. f5 {[%clk 0:01:55]}  Qxd4 {[%clk 0:02:17]} 17. fxg6 {[%clk 0:01:50]}  Qe5 {[%clk 0:01:34]} 18. gxf7+ {[%clk 0:01:41]}  Kxf7 {[%clk 0:01:35]} 19. Bf5 {[%clk 0:01:42]}  Kg7 {[%clk 0:01:31]} 20. Rfe1 {[%clk 0:01:34]}  Qxe1+ {[%clk 0:01:18]} 21. Rxe1 {[%clk 0:01:35]}  Rxe1+ {[%clk 0:01:18]} 22. Kg2 {[%clk 0:01:29]}  Rf8 {[%clk 0:01:18]} 23. Qf4 {[%clk 0:01:18]}  Ne5 {[%clk 0:01:12]} 24. Qd2 {[%clk 0:01:02]}  Ra1 {[%clk 0:00:40]} 25. Nb1 {[%clk 0:01:01]}  Ng6 {[%clk 0:00:29]} 26. Bxg6 {[%clk 0:00:50]}  hxg6 {[%clk 0:00:25]} 27. Qb2 {[%clk 0:00:50]}  Rxb1 {[%clk 0:00:25]} 28. Qxb1 {[%clk 0:00:51]}  Ne4 {[%clk 0:00:21]} 29. Qb2+ {[%clk 0:00:43]}  Kh7 {[%clk 0:00:19]} 30. f3 {[%clk 0:00:40]}  Ng5 {[%clk 0:00:17]} 31. Qa3 {[%clk 0:00:34]}  Rf7 {[%clk 0:00:11]} 32. f4 {[%clk 0:00:34]}  Ne4 {[%clk 0:00:09]} 33. Qc1 {[%clk 0:00:34]}  Re7 {[%clk 0:00:05]} 34. Qe3 {[%clk 0:00:33]}  Kg7 {[%clk 0:00:03]} 35. h4 {[%clk 0:00:29]}  Kf7 {[%clk 0:00:03]} 36. f5 {[%clk 0:00:28]}  gxf5 {[%clk 0:00:03]} 37. Qf4 {[%clk 0:00:28]}  Re6 {[%clk 0:00:02]} 38. Qxf5+ {[%clk 0:00:22]}  Rf6 {[%clk 0:00:03]} 39. Qd7+ {[%clk 0:00:22]}  Kg8 {[%clk 0:00:03]} 40. Qe8+ {[%clk 0:00:20]}  Kg7 {[%clk 0:00:03]} 41. Qe7+ {[%clk 0:00:20]}  Rf7 {[%clk 0:00:04]} 42. Qe5+ {[%clk 0:00:19]}  Kf8 {[%clk 0:00:03]} 43. g5 {[%clk 0:00:17]}  Rf2+ {[%clk 0:00:03]} 44. Kh3 {[%clk 0:00:15]}  Rxa2 {[%clk 0:00:03]} 45. g6 {[%clk 0:00:11]}  Rf2 {[%clk 0:00:02]} 46. Qh8+ {[%clk 0:00:09]}  Ke7 {[%clk 0:00:02]} 47. g7 {[%clk 0:00:10]}  Rf3+ {[%clk 0:00:01]} 48. Kh2 {[%clk 0:00:10]}  Rg3 {[%clk 0:00:02]} 49. g8=Q {[%clk 0:00:09]}  Rxg8 {[%clk 0:00:03]} 50. Qxg8 {[%clk 0:00:10]}  Kd6 {[%clk 0:00:03]} 51. Qf8+ {[%clk 0:00:10]}  Ke5 {[%clk 0:00:04]} 52. h5 {[%clk 0:00:11]}  d4 {[%clk 0:00:04]} 53. Qg7+ {[%clk 0:00:11]}  Kd5 {[%clk 0:00:04]} 54. Qd7+ {[%clk 0:00:11]}  Ke5 {[%clk 0:00:05]} 55. h6 {[%clk 0:00:11]}  Nf6 {[%clk 0:00:05]} 56. Qe7+ {[%clk 0:00:10]}  Kf5 {[%clk 0:00:05]} 57. h7 {[%clk 0:00:11]}  Nxh7 {[%clk 0:00:05]} 58. Qxh7+ {[%clk 0:00:12]}  Ke5 {[%clk 0:00:06]} 59. Qd3 {[%clk 0:00:12]}  b5 {[%clk 0:00:06]} 60. Kg3 {[%clk 0:00:13]}  c5 {[%clk 0:00:07]} 61. Kf3 {[%clk 0:00:13]}  Kd5 {[%clk 0:00:07]} 62. Qe4+ {[%clk 0:00:13]}  Kd6 {[%clk 0:00:07]} 63. Kf4 {[%clk 0:00:14]}  a5 {[%clk 0:00:07]} 64. Qe5+ {[%clk 0:00:14]}  Kc6 {[%clk 0:00:08]} 65. Ke4 {[%clk 0:00:15]}  a4 {[%clk 0:00:08]} 66. Qd5+ {[%clk 0:00:16]}  Kb6 {[%clk 0:00:08]} 67. Qd6+ {[%clk 0:00:15]}  Ka5 {[%clk 0:00:08]} 68. bxa4 {[%clk 0:00:16]}  Kxa4 {[%clk 0:00:08]} 69. Qxc5 {[%clk 0:00:15]}  b4 {[%clk 0:00:09]} 70. Kxd4 {[%clk 0:00:15]}  b3 {[%clk 0:00:08]} 71. Kc3 {[%clk 0:00:16]}  b2 {[%clk 0:00:08]} 72. Qb4# {[%clk 0:00:17]} 1-0


[Site "https://www.chess.com"]

[Event "Titled Tuesday Blitz October 12 2021"]
[White "Kucuksari, Kaan"]
[Black "Deac, Bogdan-Daniel"]
[WhiteFideId "6380166"]
[BlackFideId "1226380"]
[WhiteElo "2301"]
[BlackElo "2605"]
[Result "0-1"]
[Round "02"]
[TimeControl "180+1"]
[Date "2021.10.12"]
[WhiteClock "0:00:06"]
[BlackClock "0:00:13"]

1. d4 {[%clk 0:03:00]}  Nf6 {[%clk 0:02:59]} 2. Bg5 {[%clk 0:02:58]}  d5 {[%clk 0:02:58]} 3. Bxf6 {[%clk 0:02:58]}  exf6 {[%clk 0:02:56]} 4. e3 {[%clk 0:02:58]}  Be6 {[%clk 0:02:55]} 5. g3 {[%clk 0:02:47]}  c6 {[%clk 0:02:48]} 6. Bg2 {[%clk 0:02:48]}  Qb6 {[%clk 0:02:45]} 7. b3 {[%clk 0:02:41]}  Nd7 {[%clk 0:02:43]} 8. Ne2 {[%clk 0:02:36]}  h5 {[%clk 0:02:35]} 9. h4 {[%clk 0:02:21]}  g5 {[%clk 0:02:34]} 10. Qd3 {[%clk 0:02:10]}  O-O-O {[%clk 0:02:28]} 11. a4 {[%clk 0:02:07]}  Qa5+ {[%clk 0:02:18]} 12. c3 {[%clk 0:02:06]}  Qc7 {[%clk 0:01:46]} 13. b4 {[%clk 0:02:01]}  Nb6 {[%clk 0:01:45]} 14. Nd2 {[%clk 0:01:53]}  Kb8 {[%clk 0:01:34]} 15. a5 {[%clk 0:01:44]}  Nc4 {[%clk 0:01:34]} 16. Nxc4 {[%clk 0:01:45]}  dxc4 {[%clk 0:01:34]} 17. Qc2 {[%clk 0:01:42]}  a6 {[%clk 0:01:33]} 18. O-O-O {[%clk 0:01:34]}  Bd6 {[%clk 0:01:23]} 19. Kb2 {[%clk 0:01:29]}  Bg4 {[%clk 0:01:21]} 20. e4 {[%clk 0:01:08]}  Rde8 {[%clk 0:01:16]} 21. Qd2 {[%clk 0:01:03]}  Qe7 {[%clk 0:00:59]} 22. Rde1 {[%clk 0:01:01]}  Rd8 {[%clk 0:00:54]} 23. f3 {[%clk 0:00:32]}  Bc8 {[%clk 0:00:52]} 24. f4 {[%clk 0:00:16]}  gxf4 {[%clk 0:00:41]} 25. gxf4 {[%clk 0:00:17]}  Rdg8 {[%clk 0:00:33]} 26. Bf3 {[%clk 0:00:17]}  Bg4 {[%clk 0:00:33]} 27. Rhf1 {[%clk 0:00:16]}  Bxf3 {[%clk 0:00:31]} 28. Rxf3 {[%clk 0:00:16]}  Rg4 {[%clk 0:00:31]} 29. e5 {[%clk 0:00:15]}  Bc7 {[%clk 0:00:30]} 30. Rh1 {[%clk 0:00:10]}  Rhg8 {[%clk 0:00:28]} 31. Rf2 {[%clk 0:00:08]}  f5 {[%clk 0:00:22]} 32. Qe3 {[%clk 0:00:08]}  Qe6 {[%clk 0:00:19]} 33. Qf3 {[%clk 0:00:08]}  Bd8 {[%clk 0:00:19]} 34. Rfh2 {[%clk 0:00:05]}  Qd7 {[%clk 0:00:19]} 35. Rh3 {[%clk 0:00:05]}  c5 {[%clk 0:00:18]} 36. bxc5 {[%clk 0:00:03]}  Bxa5 {[%clk 0:00:17]} 37. Ra1 {[%clk 0:00:03]}  Qb5+ {[%clk 0:00:17]} 38. Kc2 {[%clk 0:00:04]}  Qb3+ {[%clk 0:00:16]} 39. Kc1 {[%clk 0:00:04]}  Rg1+ {[%clk 0:00:14]} 40. Nxg1 {[%clk 0:00:04]}  Rxg1+ {[%clk 0:00:15]} 41. Kd2 {[%clk 0:00:05]}  Rxa1 {[%clk 0:00:13]} 42. Rh1 {[%clk 0:00:05]}  Qb2+ {[%clk 0:00:13]} 43. Ke3 {[%clk 0:00:05]}  Qxc3+ {[%clk 0:00:13]} 44. Kf2 {[%clk 0:00:05]}  Qxf3+ {[%clk 0:00:13]} 45. Kxf3 {[%clk 0:00:06]}  Rxh1 {[%clk 0:00:13]} 0-1


[Site "https://www.chess.com"]

[Event "Titled Tuesday Blitz October 12 2021"]
[White "Lazavik, Denis"]
[Black "King, Alexander"]
[WhiteFideId "13515110"]
[BlackFideId "2063620"]
[WhiteElo "2436"]
[BlackElo "2306"]
[Result "1-0"]
[Round "02"]
[TimeControl "180+1"]
[Date "2021.10.12"]
[WhiteClock "0:00:05"]
[BlackClock "0:00:04"]

1. d4 {[%clk 0:03:00]}  d5 {[%clk 0:03:00]} 2. c4 {[%clk 0:03:00]}  e6 {[%clk 0:03:00]} 3. Nf3 {[%clk 0:02:58]}  Nf6 {[%clk 0:03:00]} 4. Nc3 {[%clk 0:02:57]}  Be7 {[%clk 0:03:00]} 5. Bg5 {[%clk 0:02:53]}  O-O {[%clk 0:03:00]} 6. e3 {[%clk 0:02:53]}  Nbd7 {[%clk 0:03:01]} 7. Qc2 {[%clk 0:02:50]}  h6 {[%clk 0:03:00]} 8. Bh4 {[%clk 0:02:48]}  c5 {[%clk 0:03:01]} 9. dxc5 {[%clk 0:02:38]}  Nxc5 {[%clk 0:02:58]} 10. cxd5 {[%clk 0:02:35]}  Nxd5 {[%clk 0:02:59]} 11. Nxd5 {[%clk 0:02:32]}  exd5 {[%clk 0:02:47]} 12. Bxe7 {[%clk 0:02:29]}  Qxe7 {[%clk 0:02:48]} 13. Be2 {[%clk 0:02:30]}  Bg4 {[%clk 0:02:43]} 14. O-O {[%clk 0:02:28]}  Rac8 {[%clk 0:02:43]} 15. Rad1 {[%clk 0:02:10]}  Rfd8 {[%clk 0:02:42]} 16. h3 {[%clk 0:02:00]}  Bh5 {[%clk 0:02:23]} 17. Nd4 {[%clk 0:01:58]}  Bg6 {[%clk 0:02:18]} 18. Qd2 {[%clk 0:01:53]}  a6 {[%clk 0:02:03]} 19. Rc1 {[%clk 0:01:45]}  Ne6 {[%clk 0:01:55]} 20. Bg4 {[%clk 0:01:36]}  Qd6 {[%clk 0:01:21]} 21. Rfd1 {[%clk 0:01:12]}  Be4 {[%clk 0:01:06]} 22. Ne2 {[%clk 0:00:50]}  Rc5 {[%clk 0:00:38]} 23. Rxc5 {[%clk 0:00:46]}  Nxc5 {[%clk 0:00:32]} 24. Nc3 {[%clk 0:00:39]}  Bg6 {[%clk 0:00:02]} 25. Nxd5 {[%clk 0:00:27]}  Kh8 {[%clk 0:00:01]} 26. Qd4 {[%clk 0:00:16]}  Ne6 {[%clk 0:00:01]} 27. Qc3 {[%clk 0:00:15]}  Qf8 {[%clk 0:00:01]} 28. Nb4 {[%clk 0:00:10]}  Rxd1+ {[%clk 0:00:01]} 29. Bxd1 {[%clk 0:00:11]}  Be4 {[%clk 0:00:01]} 30. Bc2 {[%clk 0:00:10]}  Bxc2 {[%clk 0:00:02]} 31. Nxc2 {[%clk 0:00:11]}  Qd6 {[%clk 0:00:02]} 32. Nd4 {[%clk 0:00:10]}  Nxd4 {[%clk 0:00:02]} 33. Qxd4 {[%clk 0:00:11]}  Qe6 {[%clk 0:00:02]} 34. a3 {[%clk 0:00:11]}  Kh7 {[%clk 0:00:02]} 35. g4 {[%clk 0:00:11]}  g6 {[%clk 0:00:03]} 36. Kg2 {[%clk 0:00:11]}  Qc6+ {[%clk 0:00:03]} 37. Kg3 {[%clk 0:00:10]}  Qe6 {[%clk 0:00:04]} 38. Kf3 {[%clk 0:00:08]}  Qc6+ {[%clk 0:00:04]} 39. Kg3 {[%clk 0:00:05]}  Qe6 {[%clk 0:00:04]} 40. Qf4 {[%clk 0:00:05]}  Qc6 {[%clk 0:00:04]} 41. Qxf7+ {[%clk 0:00:04]}  Kh8 {[%clk 0:00:04]} 42. Qf4 {[%clk 0:00:05]}  Kh7 {[%clk 0:00:03]} 43. Qd4 {[%clk 0:00:06]}  Qh1 {[%clk 0:00:02]} 44. Qd7+ {[%clk 0:00:05]}  Kg8 {[%clk 0:00:03]} 45. Qe6+ {[%clk 0:00:05]}  Kg7 {[%clk 0:00:04]} 46. Qe5+ {[%clk 0:00:05]}  Kg8 {[%clk 0:00:04]} 47. Qe6+ {[%clk 0:00:05]}  Kg7 {[%clk 0:00:04]} 48. Qd7+ {[%clk 0:00:05]}  Kg8 {[%clk 0:00:04]} 49. Qd4 {[%clk 0:00:05]}  Qg1+ {[%clk 0:00:03]} 50. Kf3 {[%clk 0:00:05]}  Qh1+ {[%clk 0:00:04]} 51. Ke2 {[%clk 0:00:05]}  Qxh3 {[%clk 0:00:05]} 52. Qe4 {[%clk 0:00:05]}  Kf8 {[%clk 0:00:02]} 53. Qxg6 {[%clk 0:00:05]}  Qh1 {[%clk 0:00:02]} 54. Qf5+ {[%clk 0:00:06]}  Kg8 {[%clk 0:00:02]} 55. Qe6+ {[%clk 0:00:05]}  Kh7 {[%clk 0:00:02]} 56. Qe5 {[%clk 0:00:04]}  Kg8 {[%clk 0:00:02]} 57. Qd4 {[%clk 0:00:04]}  Qg2 {[%clk 0:00:02]} 58. Qf4 {[%clk 0:00:04]}  Kh7 {[%clk 0:00:02]} 59. Kd2 {[%clk 0:00:04]}  Qd5+ {[%clk 0:00:02]} 60. Kc3 {[%clk 0:00:05]}  Qg2 {[%clk 0:00:03]} 61. Qf5+ {[%clk 0:00:05]}  Kg8 {[%clk 0:00:04]} 62. e4 {[%clk 0:00:05]}  Qf3+ {[%clk 0:00:04]} 63. Qxf3 {[%clk 0:00:05]} 1-0


[Site "https://www.chess.com"]

[Event "Titled Tuesday Blitz October 12 2021"]
[White "Levitskiy, Andrey"]
[Black "Gupta, Abhijeet"]
[WhiteFideId "14132885"]
[BlackFideId "5010608"]
[WhiteElo "2340"]
[BlackElo "2549"]
[Result "0-1"]
[Round "02"]
[TimeControl "180+1"]
[Date "2021.10.12"]
[WhiteClock "0:00:03"]
[BlackClock "0:01:11"]

1. e4 {[%clk 0:03:00]}  c5 {[%clk 0:02:59]} 2. Nf3 {[%clk 0:03:00]}  d6 {[%clk 0:02:59]} 3. d4 {[%clk 0:03:00]}  cxd4 {[%clk 0:03:00]} 4. Nxd4 {[%clk 0:03:00]}  Nf6 {[%clk 0:03:01]} 5. Nc3 {[%clk 0:03:00]}  Nc6 {[%clk 0:03:01]} 6. Bc4 {[%clk 0:03:00]}  e6 {[%clk 0:03:02]} 7. Be3 {[%clk 0:02:59]}  a6 {[%clk 0:03:02]} 8. Bb3 {[%clk 0:03:00]}  Qc7 {[%clk 0:03:01]} 9. f4 {[%clk 0:03:00]}  Na5 {[%clk 0:02:59]} 10. f5 {[%clk 0:02:59]}  e5 {[%clk 0:02:56]} 11. Nf3 {[%clk 0:02:54]}  Nxb3 {[%clk 0:02:47]} 12. cxb3 {[%clk 0:02:43]}  b5 {[%clk 0:02:43]} 13. Rc1 {[%clk 0:02:17]}  Qb7 {[%clk 0:02:43]} 14. Bg5 {[%clk 0:01:34]}  Nxe4 {[%clk 0:02:40]} 15. Nd5 {[%clk 0:01:34]}  Bxf5 {[%clk 0:02:20]} 16. Nc7+ {[%clk 0:01:23]}  Kd7 {[%clk 0:02:20]} 17. Nxe5+ {[%clk 0:01:20]}  Kc8 {[%clk 0:02:17]} 18. Nxa8+ {[%clk 0:00:34]}  Kb8 {[%clk 0:02:17]} 19. Nc7 {[%clk 0:00:34]}  dxe5 {[%clk 0:01:53]} 20. Qd8+ {[%clk 0:00:31]}  Bc8 {[%clk 0:01:53]} 21. Be7 {[%clk 0:00:14]}  Bxe7 {[%clk 0:01:22]} 22. Qxe7 {[%clk 0:00:14]}  Qb6 {[%clk 0:01:19]} 23. Rc2 {[%clk 0:00:03]}  Qe3+ {[%clk 0:01:12]} 24. Kd1 {[%clk 0:00:03]}  Bg4+ {[%clk 0:01:11]} 0-1


[Site "https://www.chess.com"]